bitfinex-derivatives/quotes_BTCF0:USTF0_20241213
["timestamp","ask_amount","ask_price","bid_price","bid_amount"]
[1734051521471,0.99874338,100110.0,100100.0,0.1]
[1734051522072,0.99874338,100110.0,100100.0,0.11561203]
[1734051522273,0.99874338,100110.0,100100.0,0.11561204]
[1734051522478,0.99874338,100110.0,100100.0,0.1]
[1734051522871,0.99874338,100110.0,100100.0,0.11561204]
[1734051523073,0.99874338,100110.0,100100.0,0.1]
[1734051523370,0.84912531,100110.0,100100.0,0.11561263]
[1734051523681,0.99870863,100110.0,100100.0,0.11561263]
[1734051523877,0.84912531,100110.0,100100.0,0.11561263]
[1734051524468,0.99870033,100110.0,100100.0,0.11561263]
[1734051524670,0.99870065,100110.0,100100.0,0.1]
[1734051524981,0.99870065,100110.0,100100.0,0.11561241]
[1734051525876,1.01836855,100110.0,100100.0,0.11561241]
[1734051526179,1.01835861,100110.0,100100.0,0.11561241]
[1734051526674,0.86879321,100110.0,100100.0,0.11561241]
[1734051527080,0.86879321,100110.0,100100.0,0.15932706]
[1734051527481,0.86879321,100110.0,100100.0,0.11561241]
[1734051527695,0.86879321,100110.0,100100.0,0.1]
[1734051527885,0.86879321,100110.0,100100.0,0.15932726]
[1734051528582,1.01834004,100110.0,100100.0,0.15932726]
[1734051528981,1.01834004,100110.0,100100.0,0.1]
[1734051533386,0.83932683,100110.0,100100.0,0.1]
[1734051533877,0.83932683,100110.0,100100.0,0.27908368]
[1734051533878,0.80822683,100110.0,100100.0,0.27908368]
[1734051534275,0.44742683,100110.0,100100.0,0.27908368]
[1734051534497,0.80822683,100110.0,100100.0,0.27908368]
[1734051535785,0.83852683,100110.0,100100.0,0.27908368]
[1734051541278,1.01754004,100110.0,100100.0,0.32279552]
[1734051542487,0.86799321,100110.0,100100.0,0.32279552]
[1734051545386,0.86799321,100110.0,100100.0,0.27908368]
[1734051545591,0.86799321,100110.0,100100.0,0.3227973]
[1734051546495,0.89693014,100110.0,100100.0,0.3227973]
[1734051546893,0.83404515,100110.0,100100.0,0.3227973]
[1734051547194,0.68898,100110.0,100100.0,0.3227973]
[1734051549189,0.86873495,100110.0,100100.0,0.27908368]
[1734051549587,0.41213495,100110.0,100100.0,0.51782674]
[1734051549793,0.77293495,100110.0,100100.0,0.58042674]
[1734051550393,0.41213495,100110.0,100100.0,0.58042674]
[1734051552992,0.41213495,100110.0,100100.0,0.40134306]
[1734051553397,0.37946495,100110.0,100100.0,0.67433829]
[1734051553595,0.37946495,100110.0,100100.0,0.52789128]
[1734051553898,0.44234994,100110.0,100100.0,0.82650204]
[1734051554590,0.54224505,100110.0,100100.0,1.07868911]
[1734051554786,0.54224505,100110.0,100100.0,0.77656504]
[1734051555097,0.54224505,100110.0,100100.0,0.65725138]
[1734051557993,0.54224505,100110.0,100100.0,0.62435138]
[1734051560303,0.54224505,100110.0,100100.0,1.03508838]
[1734051560304,0.47936006,100110.0,100100.0,1.03508838]
[1734051560501,0.31949351,100110.0,100100.0,1.31119109]
[1734051560804,0.31949351,100110.0,100100.0,1.66973127]
[1734051560805,0.25954784,100110.0,100100.0,1.66973127]
[1734051561101,0.25954784,100110.0,100100.0,3.16973127]
[1734051561303,0.25954784,100110.0,100100.0,1.66973127]
[1734051562301,0.25954784,100110.0,100100.0,1.31119109]
[1734051562498,0.25954784,100110.0,100100.0,1.00894397]
[1734051562803,0.25954784,100110.0,100100.0,1.66867147]
[1734051562995,0.25954784,100110.0,100100.0,1.31013129]
[1734051564000,0.13976433,100110.0,100100.0,1.66867147]
[1734051564508,0.13976433,100110.0,100100.0,1.31013129]
[1734051565300,0.13976433,100110.0,100100.0,1.66867147]
[1734051565703,0.049932,100110.0,100100.0,1.66867147]
[1734051566303,0.13976433,100110.0,100100.0,1.66867147]
[1734051566503,0.049932,100110.0,100100.0,1.66867147]
[1734051566707,0.28268162,100120.0,100100.0,1.66867147]
[1734051566904,0.26972663,100120.0,100110.0,0.82854021]
[1734051567101,0.36962174,100120.0,100110.0,0.87225143]
[1734051567304,0.26972663,100120.0,100110.0,0.87225143]
[1734051570308,0.26972663,100120.0,100110.0,0.75607576]
[1734051570309,0.21979663,100120.0,100110.0,0.75607576]
[1734051570511,0.01018079,100120.0,100110.0,1.35320832]
[1734051570710,0.32242383,100130.0,100110.0,1.35320832]
[1734051571005,0.20264032,100130.0,100120.0,0.82842739]
[1734051571214,0.32242383,100130.0,100120.0,0.87212413]
[1734051571510,0.20264032,100130.0,100120.0,0.87212413]
[1734051573610,0.20264032,100130.0,100120.0,0.27257658]
[1734051574603,0.20264032,100130.0,100120.0,0.63337658]
[1734051575110,0.14979583,100130.0,100120.0,0.75916157]
[1734051576008,0.14979583,100130.0,100120.0,0.69627658]
[1734051576811,0.14979583,100130.0,100120.0,0.65257984]
[1734051579822,0.21268082,100130.0,100120.0,0.65257984]
[1734051581226,0.33246433,100130.0,100120.0,0.65257984]
[1734051582022,0.21268082,100130.0,100120.0,0.65257984]
[1734051582239,0.33246433,100130.0,100120.0,0.65257984]
[1734051582422,0.21268082,100130.0,100120.0,0.65257984]
[1734051582922,0.33246433,100130.0,100120.0,0.58967984]
[1734051584232,0.43233948,100130.0,100120.0,0.58967984]
[1734051585133,0.43233948,100130.0,100120.0,0.53975284]
[1734051586424,0.34250715,100130.0,100120.0,0.53975284]
[1734051586625,0.43215651,100130.0,100120.0,0.53975284]
[1734051586929,0.43215651,100130.0,100120.0,0.58345279]
[1734051587126,0.85308515,100130.0,100120.0,0.04369995]
[1734051587333,0.049927,100120.0,100110.0,0.82843039]
[1734051587527,0.38586512,100120.0,100110.0,0.87213293]
[1734051587827,0.41876512,100120.0,100110.0,0.87213293]
[1734051590528,0.3290955,100120.0,100110.0,0.87213293]
[1734051590731,0.23331051,100120.0,100110.0,0.87213293]
[1734051590934,0.16971051,100120.0,100110.0,0.93501792]
[1734051591339,0.25945664,100120.0,100110.0,0.93501792]
[1734051591532,0.25945664,100120.0,100110.0,0.75606508]
[1734051591738,0.25945664,100120.0,100110.0,0.93524135]
[1734051592536,0.25947138,100120.0,100110.0,1.35480217]
[1734051593529,0.25947138,100120.0,100110.0,1.35451544]
[1734051595429,0.25947138,100120.0,100110.0,2.61576789]
[1734051596027,0.25947138,100120.0,100110.0,2.85474522]
[1734051596234,0.25947138,100120.0,100110.0,2.61576789]
[1734051596532,0.25947138,100120.0,100110.0,2.7918744]
[1734051596742,0.32235637,100120.0,100110.0,1.2918744]
[1734051596934,0.3823735,100120.0,100110.0,1.29188325]
[1734051597131,0.4426735,100120.0,100110.0,1.29188325]
[1734051597336,0.4426735,100120.0,100110.0,0.87269823]
[1734051598633,0.4426735,100120.0,100110.0,0.69343289]
[1734051598832,0.4426735,100120.0,100110.0,0.87269026]
[1734051600735,0.20955802,100120.0,100110.0,1.35538729]
[1734051600934,0.20955802,100120.0,100110.0,1.47492712]
[1734051601138,0.25948502,100120.0,100110.0,1.11638694]
[1734051601438,0.25948502,100120.0,100110.0,1.05350195]
[1734051601633,0.25948502,100120.0,100110.0,1.29249428]
[1734051601831,0.32237001,100120.0,100110.0,1.29249428]
[1734051603135,0.25948502,100120.0,100110.0,1.29249428]
[1734051603334,0.25948502,100120.0,100110.0,1.11638694]
[1734051604130,0.25948502,100120.0,100110.0,1.47492712]
[1734051604336,0.25948502,100120.0,100110.0,2.97492712]
[1734051604735,0.25948502,100120.0,100110.0,2.61638694]
[1734051605339,0.25948502,100120.0,100110.0,2.31592829]
[1734051605534,0.32237001,100120.0,100110.0,1.05355252]
[1734051605739,0.3823735,100120.0,100110.0,1.29259373]
[1734051606848,0.25950516,100120.0,100110.0,1.35547872]
[1734051607542,0.2595104,100120.0,100110.0,1.47497769]
[1734051607844,0.2095834,100120.0,100110.0,1.11643751]
[1734051608044,0.2095834,100120.0,100110.0,1.53786268]
[1734051608238,0.2095834,100120.0,100110.0,1.53385408]
[1734051608239,0.08979989,100120.0,100110.0,1.53385408]
[1734051609539,0.08979989,100120.0,100110.0,1.53143203]
[1734051609735,0.4193269,100130.0,100120.0,0.049927]
[1734051609945,0.2695489,100130.0,100120.0,1.17921206]
[1734051610138,0.2695489,100130.0,100120.0,1.20981206]
[1734051614539,0.2695489,100130.0,100120.0,1.44876315]
[1734051615444,0.33243389,100130.0,100120.0,1.35277816]
[1734051615656,0.33243389,100130.0,100120.0,1.32177816]
[1734051616548,0.392412,100130.0,100120.0,0.90320148]
[1734051617046,0.392412,100130.0,100120.0,0.46187448]
[1734051617248,0.85858863,100130.0,100120.0,0.46189037]
[1734051617547,0.79570364,100130.0,100120.0,0.46189037]
[1734051617737,0.85858863,100130.0,100120.0,0.22293928]
[1734051618047,0.88856558,100130.0,100120.0,0.04369921]
[1734051618642,0.88856558,100130.0,100120.0,0.02545539]
[1734051618847,0.88856558,100130.0,100120.0,0.01645539]
[1734051620749,0.049927,100120.0,100110.0,0.41818783]
[1734051620951,0.47823088,100120.0,100110.0,0.41818783]
[1734051621343,0.57810603,100120.0,100110.0,0.41818783]
[1734051621536,0.93890603,100120.0,100110.0,0.17923674]
[1734051621736,0.99900147,100120.0,100110.0,0.17923674]
[1734051621939,0.99900147,100120.0,100100.0,0.51818783]
[1734051622153,0.74661506,100110.0,100100.0,0.51818783]
[1734051622452,0.80644742,100110.0,100100.0,0.27923674]
[1734051622845,0.54553255,100110.0,100100.0,0.27923674]
[1734051623036,0.54552652,100110.0,100100.0,0.27923674]
[1734051624248,0.48564531,100110.0,100100.0,0.27923674]
[1734051624749,0.29237519,100110.0,100100.0,0.81574372]
[1734051624956,0.25927519,100110.0,100100.0,1.05469481]
[1734051625144,0.13962518,100110.0,100100.0,1.02452483]
[1734051625546,0.13962518,100110.0,100100.0,2.52452483]
[1734051625747,0.13962518,100110.0,100100.0,2.62032268]
[1734051626147,0.13962518,100110.0,100100.0,2.52452483]
[1734051628254,0.13962518,100110.0,100100.0,1.02452483]
[1734051628749,0.13962518,100110.0,100100.0,1.06822908]
[1734051629054,0.13962518,100110.0,100100.0,1.48921562]
[1734051629055,0.049932,100110.0,100100.0,1.48921562]
[1734051629646,0.049932,100110.0,100100.0,1.58501347]
[1734051630046,0.049932,100110.0,100100.0,1.25026453]
[1734051631746,0.049932,100110.0,100100.0,1.48893596]
[1734051631941,0.14572985,100110.0,100100.0,1.40699896]
[1734051632158,0.14572985,100110.0,100100.0,1.34339896]
[1734051632348,0.14572985,100110.0,100100.0,0.92219673]
[1734051632349,0.30092303,100110.0,100100.0,0.92219673]
[1734051632550,0.30092303,100110.0,100100.0,0.56139673]
[1734051633156,0.42057304,100110.0,100100.0,0.56139673]
[1734051633357,0.42057304,100110.0,100100.0,0.3227253]
[1734051633854,0.52043725,100110.0,100100.0,0.3227307]
[1734051634053,0.94114936,100110.0,100100.0,0.14370965]
[1734051634255,0.94114936,100110.0,100100.0,0.1]
[1734051636150,0.95104696,100110.0,100100.0,0.1]
[1734051637257,0.80147257,100110.0,100100.0,0.27902105]
[1734051640849,0.89727042,100110.0,100100.0,0.27902105]
[1734051641053,0.77762041,100110.0,100100.0,0.06503496]
[1734051641357,0.049942,100090.0,100080.0,0.24402105]
[1734051641561,0.13956511,100090.0,100080.0,0.28773852]
[1734051643851,0.13956511,100090.0,100080.0,0.22273852]
[1734051644061,0.45477551,100090.0,100080.0,0.04371747]
[1734051644954,0.51727551,100090.0,100080.0,0.04371747]
[1734051645153,0.3651524,100090.0,100080.0,0.22273852]
[1734051645358,0.049947,100080.0,100070.0,0.41225055]
[1734051645562,0.1395722,100080.0,100070.0,0.41225055]
[1734051645863,0.1395722,100080.0,100070.0,0.36229855]
[1734051646054,0.14574485,100080.0,100070.0,0.82372347]
[1734051647069,0.049947,100080.0,100070.0,0.82372347]
[1734051648173,0.14574485,100080.0,100070.0,0.22423709]
[1734051648363,0.09579785,100080.0,100070.0,0.47853818]
[1734051648666,0.18542305,100080.0,100070.0,0.22423709]
[1734051649069,0.3352951,100080.0,100070.0,0.22423709]
[1734051649369,0.6960951,100080.0,100070.0,0.22423709]
[1734051649569,0.81559258,100080.0,100070.0,0.04521602]
[1734051650059,0.88119258,100080.0,100070.0,0.04521602]
[1734051650261,0.7616951,100080.0,100070.0,0.00149855]
[1734051650665,0.88119258,100080.0,100070.0,0.00149855]
[1734051651963,0.049952,100070.0,100060.0,0.6354502]
[1734051652173,0.14574985,100070.0,100060.0,0.67917481]
[1734051652372,0.14574985,100070.0,100060.0,0.58367481]
[1734051652674,0.14574985,100070.0,100060.0,0.40465374]
[1734051652877,0.14574985,100070.0,100060.0,0.04385374]
[1734051653063,0.23537505,100070.0,100060.0,0.04385374]
[1734051653265,0.59617505,100070.0,100060.0,0.00012913]
[1734051653564,0.81560757,100070.0,100060.0,0.00012913]
[1734051656365,0.049962,100050.0,100040.0,2.07222107]
[1734051656567,0.049962,100050.0,100040.0,2.11595262]
[1734051656971,0.049962,100050.0,100040.0,2.14775262]
[1734051661277,0.049962,100050.0,100040.0,2.19771962]
[1734051661587,0.049962,100050.0,100040.0,2.436406]
[1734051661778,0.05986504,100050.0,100040.0,2.436406]
[1734051662484,0.05986504,100050.0,100040.0,2.386439]
[1734051662686,0.15566289,100050.0,100040.0,0.64775262]
[1734051663079,0.15566289,100050.0,100040.0,0.46873155]
[1734051663372,0.15566289,100050.0,100040.0,0.45255098]
[1734051663373,0.25561791,100050.0,100040.0,0.45255098]
[1734051663575,0.20565591,100050.0,100040.0,0.43693155]
[1734051663780,0.25561791,100050.0,100040.0,0.43693155]
[1734051665486,0.25561791,100050.0,100040.0,0.40453155]
[1734051668187,0.15982006,100050.0,100040.0,0.64835262]
[1734051668585,0.15982006,100050.0,100040.0,2.387039]
[1734051668787,0.15982006,100050.0,100040.0,0.28755262]
[1734051669087,0.15982006,100050.0,100040.0,0.64835262]
[1734051669290,0.15982006,100050.0,100040.0,2.026239]
[1734051669990,0.15982006,100050.0,100040.0,1.83751962]
[1734051670193,0.15982006,100050.0,100040.0,2.076206]
[1734051670387,0.15982006,100050.0,100040.0,0.576206]
[1734051671893,0.05986504,100050.0,100040.0,0.937006]
[1734051672097,0.05986504,100050.0,100040.0,0.576206]
[1734051672397,0.15566289,100050.0,100040.0,0.461439]
[1734051672582,0.25561791,100050.0,100040.0,0.461439]
[1734051673095,0.25561791,100050.0,100040.0,0.22275262]
[1734051673686,0.05986504,100050.0,100040.0,0.22275262]
[1734051673900,0.05986504,100050.0,100040.0,0.903006]
[1734051674195,0.05986504,100050.0,100040.0,0.936106]
[1734051674398,0.05986504,100050.0,100040.0,0.75708493]
[1734051674794,0.05986504,100050.0,100040.0,0.93634739]
[1734051674996,0.05986504,100050.0,100040.0,1.3684754]
[1734051677384,0.05986504,100050.0,100040.0,1.12978902]
[1734051677585,0.05986504,100050.0,100040.0,1.36900718]
[1734051678194,0.05986504,100050.0,100040.0,1.33597589]
[1734051678195,0.24528809,100050.0,100040.0,1.33597589]
[1734051678999,0.24528809,100050.0,100040.0,1.28600889]
[1734051679200,0.21245083,100050.0,100040.0,1.28600889]
[1734051679493,0.33194831,100050.0,100040.0,1.28600889]
[1734051681296,0.36491538,100050.0,100040.0,1.04672202]
[1734051681801,0.26898772,100050.0,100040.0,1.4552292]
[1734051681987,0.26898772,100050.0,100040.0,1.4881292]
[1734051682796,0.26898772,100050.0,100040.0,1.58405686]
[1734051683001,0.1395872,100050.0,100040.0,1.65888892]
[1734051683605,0.1395872,100050.0,100040.0,3.15888892]
[1734051684292,0.08336436,100050.0,100040.0,2.79812654]
[1734051684499,0.11949748,100060.0,100050.0,0.049962]
[1734051684696,0.16945548,100060.0,100050.0,1.62458748]
[1734051684897,0.049958,100060.0,100050.0,1.62458748]
[1734051685493,0.17947519,100070.0,100060.0,0.049957]
[1734051685694,0.17947519,100070.0,100060.0,1.486928]
[1734051686304,0.17947519,100070.0,100060.0,1.12753178]
[1734051687199,0.05997771,100070.0,100060.0,1.21446944]
[1734051687599,0.05997771,100070.0,100060.0,1.11854178]
[1734051688405,0.31881833,100080.0,100070.0,0.049952]
[1734051688606,0.16944648,100080.0,100070.0,0.82934944]
[1734051688907,0.16944648,100080.0,100070.0,0.72368209]
[1734051689095,0.049949,100080.0,100070.0,1.04876062]
[1734051689299,0.049949,100080.0,100070.0,2.78777506]
[1734051689703,0.049949,100080.0,100070.0,2.83149451]
[1734051690008,0.049949,100080.0,100070.0,2.83149432]
[1734051690308,0.049949,100080.0,100070.0,2.22348573]
[1734051690806,0.049949,100080.0,100070.0,2.83108957]
[1734051691201,0.049949,100080.0,100070.0,2.40263745]
[1734051691901,0.049949,100080.0,100070.0,0.90263745]
[1734051692604,0.06004641,100090.0,100080.0,0.049947]
[1734051692802,0.06004641,100090.0,100080.0,0.71852638]
[1734051693002,0.06004641,100090.0,100080.0,0.95754082]
[1734051693199,0.06004641,100090.0,100080.0,1.00125812]
[1734051693395,0.06004641,100090.0,100080.0,0.71852638]
[1734051694004,0.06004641,100090.0,100080.0,1.42609215]
[1734051694206,0.06004641,100090.0,100080.0,1.1214004]
[1734051694503,0.06004641,100090.0,100080.0,1.0009766]
[1734051695202,0.06004641,100090.0,100080.0,0.90504894]
[1734051696111,0.06004641,100090.0,100080.0,0.6660345]
[1734051696403,0.06004641,100090.0,100080.0,0.62231703]
[1734051697305,0.06004641,100090.0,100080.0,0.58961703]
[1734051697503,0.15597407,100090.0,100080.0,0.3608]
[1734051697703,0.049947,100080.0,100070.0,0.61962103]
[1734051698401,0.049947,100080.0,100070.0,0.6633387]
[1734051698609,0.049947,100080.0,100070.0,0.61962103]
[1734051699207,0.081447,100080.0,100070.0,0.58962103]
[1734051699401,0.081447,100080.0,100070.0,0.3608]
[1734051699402,0.30809971,100080.0,100070.0,0.3608]
[1734051699708,0.34079971,100080.0,100070.0,0.3608]
[1734051700300,0.049952,100070.0,100060.0,0.17887003]
[1734051700503,0.049957,100060.0,100050.0,2.32864547]
[1734051700698,0.082957,100060.0,100050.0,2.3723733]
[1734051700900,0.082957,100060.0,100050.0,2.13335886]
[1734051701297,0.082957,100060.0,100050.0,0.8723733]
[1734051702004,0.082957,100060.0,100050.0,1.95448883]
[1734051702203,0.082957,100060.0,100050.0,2.13335886]
[1734051702901,0.09321992,100060.0,100050.0,2.13335886]
[1734051703707,0.18914758,100060.0,100050.0,1.90452783]
[1734051704016,0.049962,100050.0,100040.0,0.82864947]
[1734051704307,0.049962,100050.0,100040.0,0.87238023]
[1734051704608,0.082662,100050.0,100040.0,0.82241523]
[1734051705108,0.082662,100050.0,100040.0,0.58340079]
[1734051705309,0.082662,100050.0,100040.0,0.53967003]
[1734051705503,0.082662,100050.0,100040.0,0.58340349]
[1734051706598,0.27854468,100050.0,100040.0,0.22260349]
[1734051706798,0.63934468,100050.0,100040.0,0.04373346]
[1734051707107,0.049967,100040.0,100030.0,0.78018366]
[1734051707309,0.080967,100040.0,100030.0,0.82392114]
[1734051707511,0.080967,100040.0,100030.0,0.5753667]
[1734051707814,0.080967,100040.0,100030.0,2.0753667]
[1734051708012,0.113167,100040.0,100030.0,2.0753667]
[1734051708609,0.113167,100040.0,100030.0,2.03162922]
[1734051708921,0.113167,100040.0,100030.0,2.07536612]
[1734051711511,0.113167,100040.0,100030.0,2.03162922]
[1734051712108,0.113167,100040.0,100030.0,2.03967003]
[1734051714014,0.05977999,100040.0,100030.0,2.18556969]
[1734051714203,0.05977999,100040.0,100030.0,2.21656969]
[1734051714815,0.05977999,100040.0,100030.0,2.24896969]
[1734051716306,0.049967,100040.0,100030.0,2.24896969]
[1734051716739,0.049967,100040.0,100030.0,2.48798413]
[1734051716933,0.049967,100040.0,100030.0,2.24896969]
[1734051717134,0.049967,100040.0,100030.0,2.29270518]
[1734051717323,0.14589466,100040.0,100030.0,0.22260552]
[1734051717533,0.049972,100030.0,100020.0,0.53967003]
[1734051718041,0.049972,100030.0,100020.0,0.60297003]
[1734051718244,0.049972,100030.0,100020.0,0.69889769]
[1734051718739,0.049972,100030.0,100020.0,0.60297003]
[1734051719325,0.049972,100030.0,100020.0,0.65294703]
[1734051720820,0.0301,100040.0,100030.0,0.049971]
[1734051720821,0.049969,100040.0,100030.0,0.049971]
[1734051721047,0.049969,100040.0,100030.0,0.442171]
[1734051721820,0.049969,100040.0,100030.0,0.48590902]
[1734051722109,0.049969,100040.0,100030.0,0.58183668]
[1734051722311,0.049969,100040.0,100030.0,0.76070671]
[1734051722516,0.049969,100040.0,100030.0,0.99972115]
[1734051722735,0.049969,100040.0,100030.0,0.76070671]
[1734051723418,0.049969,100040.0,100030.0,0.99972115]
[1734051723941,0.049969,100040.0,100030.0,2.49972115]
[1734051724120,0.08025683,100050.0,100040.0,0.049967]
[1734051724355,0.07033945,100050.0,100040.0,0.65253703]
[1734051724525,0.07033945,100050.0,100040.0,0.69627505]
[1734051725826,0.07033945,100050.0,100040.0,0.60257003]
[1734051726028,0.16626711,100050.0,100040.0,0.60257003]
[1734051727327,0.16626711,100050.0,100040.0,0.84158447]
[1734051728024,0.16626711,100050.0,100040.0,0.84032447]
[1734051728220,0.16626711,100050.0,100040.0,0.66145444]
[1734051728530,0.16626711,100050.0,100040.0,0.80969989]
[1734051729025,0.16626711,100050.0,100040.0,0.63035444]
[1734051729820,0.16626711,100050.0,100040.0,0.67408837]
[1734051730243,0.16626711,100050.0,100040.0,0.85354051]
[1734051730828,0.26622213,100050.0,100040.0,0.85354051]
[1734051731130,0.26622213,100050.0,100040.0,0.67408837]
[1734051731520,0.26622213,100050.0,100040.0,0.43507393]
[1734051736527,0.38566812,100050.0,100040.0,1.28620475]
[1734051737126,0.38566812,100050.0,100040.0,1.25440475]
[1734051737335,0.63090327,100050.0,100040.0,0.28328861]
[1734051737535,0.53497561,100050.0,100040.0,0.28328861]
[1734051737746,0.89577561,100050.0,100040.0,0.46296117]
[1734051738038,0.99170327,100050.0,100040.0,0.46296117]
[1734051738337,0.89577561,100050.0,100040.0,0.46296117]
[1734051739533,0.77632962,100050.0,100040.0,0.46296117]
[1734051739925,0.41552962,100050.0,100040.0,0.46296117]
[1734051740334,0.77632962,100050.0,100040.0,0.46296117]
[1734051740537,0.41552962,100050.0,100040.0,0.46296117]
[1734051741033,0.77632962,100050.0,100040.0,0.46296117]
[1734051745647,1.05142627,100050.0,100040.0,0.22340649]
[1734051746155,0.95549861,100050.0,100040.0,0.22340649]
[1734051746349,0.77632962,100050.0,100040.0,0.22340649]
[1734051746748,0.89580064,100050.0,100040.0,0.46296117]
[1734051747149,0.77632962,100050.0,100040.0,0.46296117]
[1734051747351,0.77632962,100050.0,100040.0,0.22340649]
[1734051747548,0.77632962,100050.0,100040.0,0.46296117]
[1734051747753,0.87225728,100050.0,100040.0,0.46296117]
[1734051747953,0.77632962,100050.0,100040.0,0.46296117]
[1734051748153,0.77632962,100050.0,100040.0,0.22340649]
[1734051748454,0.95549861,100050.0,100040.0,0.22194649]
[1734051749447,1.05142627,100050.0,100040.0,0.22194649]
[1734051750250,0.95549861,100050.0,100040.0,0.22194649]
[1734051751955,1.05142627,100050.0,100040.0,0.22194649]
[1734051754657,1.05142627,100050.0,100040.0,0.17967256]
[1734051756148,0.95549861,100050.0,100040.0,0.17967256]
[1734051756762,1.05142627,100050.0,100040.0,0.17967256]
[1734051756967,0.95549861,100050.0,100040.0,0.17967256]
[1734051757152,1.05142627,100050.0,100040.0,0.17967256]
[1734051758261,0.95549861,100050.0,100040.0,0.17967256]
[1734051758454,0.95549861,100050.0,100040.0,0.22341162]
[1734051758655,1.05142627,100050.0,100040.0,0.22341162]
[1734051759160,0.95549861,100050.0,100040.0,0.22341162]
[1734051759354,1.05142627,100050.0,100040.0,0.22341176]
[1734051761259,0.98550629,100050.0,100040.0,0.22341176]
[1734051764563,0.8361988,100050.0,100040.0,0.22341176]
[1734051767865,0.71026346,100050.0,100040.0,0.22341176]
[1734051768059,0.8361988,100050.0,100040.0,0.22341176]
[1734051768861,0.8361988,100050.0,100040.0,0.22308176]
[1734051769063,0.8361988,100050.0,100040.0,0.46263644]
[1734051769266,0.77323113,100050.0,100040.0,0.41889724]
[1734051770166,0.75285568,100050.0,100040.0,0.41889724]
[1734051771868,0.75285568,100050.0,100040.0,0.46263681]
[1734051772988,0.77301617,100050.0,100040.0,0.46263681]
[1734051774565,0.89895151,100050.0,100030.0,0.24219823]
[1734051774767,0.96131807,100040.0,100030.0,0.57271666]
[1734051775069,0.99281807,100040.0,100030.0,0.33987354]
[1734051775280,0.049982,100010.0,100000.0,0.5254]
[1734051775773,0.24558067,100010.0,100000.0,0.54102475]
[1734051775968,0.24558067,100010.0,100000.0,0.5566497]
[1734051775969,0.182613,100010.0,100000.0,0.5566497]
[1734051776172,0.232595,100010.0,100000.0,0.54102475]
[1734051776566,0.232595,100010.0,100000.0,0.5254]
[1734051777365,0.27577062,100010.0,100000.0,0.5254]
[1734051777567,0.15612529,100010.0,100000.0,0.5254]
[1734051778766,0.06010974,100010.0,100000.0,0.5254]
[1734051780578,0.319182,100020.0,100000.0,0.62141555]
[1734051780875,0.319176,100030.0,100020.0,0.049977]
[1734051781076,0.16961933,100030.0,100020.0,0.410777]
[1734051781299,0.16961933,100030.0,100020.0,0.474377]
[1734051781587,0.17954552,100030.0,100020.0,0.474377]
[1734051781761,0.17954552,100030.0,100020.0,0.57039255]
[1734051781762,0.049974,100030.0,100020.0,0.57039255]
[1734051781965,0.049974,100030.0,100020.0,0.474377]
[1734051782176,0.049974,100030.0,100020.0,1.974377]
[1734051782776,0.049974,100030.0,100020.0,0.474377]
[1734051784290,0.049974,100030.0,100020.0,0.4244]
[1734051784476,0.14598955,100030.0,100020.0,0.4244]
[1734051785186,0.26529708,100030.0,100020.0,0.0636]
[1734051785476,0.36527208,100030.0,100020.0,0.07424091]
[1734051785779,0.36527208,100030.0,100020.0,0.04374091]
[1734051785969,0.39857208,100030.0,100020.0,0.04374091]
[1734051786487,0.049977,100020.0,100010.0,0.443181]
[1734051786683,0.049977,100020.0,100010.0,0.48692453]
[1734051788972,0.049977,100020.0,100010.0,0.43694353]
[1734051789182,0.24597755,100020.0,100010.0,0.43694353]
[1734051789879,0.36528508,100020.0,100010.0,0.43694353]
[1734051791473,0.36528508,100020.0,100010.0,0.40454353]
[1734051791883,0.26926953,100020.0,100010.0,0.40454353]
[1734051792578,0.26926953,100020.0,100010.0,0.3608]
[1734051793673,0.26926953,100020.0,100010.0,0.40454701]
[1734051794080,0.27904784,100020.0,100010.0,0.40454701]
[1734051794782,0.27904784,100020.0,100010.0,0.43464701]
[1734051796581,0.15974031,100020.0,100010.0,0.43464701]
[1734051797390,0.27904784,100020.0,100010.0,0.43464701]
[1734051797688,0.37506339,100020.0,100010.0,0.3909]
[1734051797983,0.37506339,100020.0,100010.0,0.40454626]
[1734051798981,0.37506339,100020.0,100010.0,0.3608]
[1734051799692,0.37506339,100020.0,100010.0,0.40454594]
[1734051800191,0.27904784,100020.0,100010.0,0.40454594]
[1734051800891,0.27904784,100020.0,100010.0,0.3608]
[1734051801892,0.29941561,100020.0,100010.0,0.3608]
[1734051802492,0.39543116,100020.0,100010.0,0.3608]
[1734051802696,0.39543116,100020.0,100010.0,0.40454673]
[1734051803584,0.39543116,100020.0,100010.0,0.04374673]
[1734051803893,0.54456558,100020.0,100010.0,0.04374673]
[1734051804314,0.049982,100010.0,100000.0,0.5239]
[1734051804611,0.4144395,100010.0,100000.0,0.53484872]
[1734051804813,0.29513197,100010.0,100000.0,0.53484872]
[1734051805015,0.39511697,100010.0,100000.0,0.53484872]
[1734051805520,0.51444268,100010.0,100000.0,0.4911]
[1734051806529,0.87524268,100010.0,100000.0,0.50455415]
[1734051806823,0.93874268,100010.0,100000.0,0.50455415]
[1734051807118,0.99837827,100010.0,100000.0,0.1]
[1734051808520,0.81941697,100010.0,100000.0,0.1]
[1734051809328,0.84924385,100010.0,100000.0,0.1]
[1734051809513,0.99822797,100010.0,100000.0,0.1]
[1734051812325,0.049996,99983.0,99982.0,0.3608]
[1734051812530,0.049996,99983.0,99982.0,0.40456018]
[1734051812823,0.049996,99983.0,99982.0,0.3608]
[1734051813814,0.049996,99983.0,99982.0,0.40456018]
[1734051814813,0.049996,99983.0,99982.0,0.3608]
[1734051816904,0.049996,99983.0,99982.0,0.40456066]
[1734051817695,0.049996,99983.0,99982.0,0.3608]
[1734051819205,0.05,99974.0,99973.0,0.3608]
[1734051819507,0.05,99974.0,99973.0,0.40456267]
[1734051821507,0.05,99974.0,99973.0,0.3608]
[1734051824505,0.05,99974.0,99973.0,0.40456302]
[1734051824702,0.05,99974.0,99973.0,0.3608]
[1734051825701,0.05,99974.0,99973.0,0.40456305]
[1734051829233,0.05,99974.0,99973.0,0.3608]
[1734051830910,0.05,99974.0,99973.0,0.40456305]
[1734051832408,0.05,99974.0,99973.0,0.04376305]
[1734051835512,0.05,99974.0,99972.0,0.3608]
[1734051835920,0.05,99974.0,99973.0,0.23962307]
[1734051836105,0.05,99974.0,99972.0,0.3608]
[1734051837121,0.05,99974.0,99972.0,0.66032884]
[1734051840021,0.05,99974.0,99973.0,0.33774575]
[1734051840315,0.05,99974.0,99973.0,0.04376342]
[1734051844321,0.05,99974.0,99973.0,0.34329226]
[1734051846414,0.05,99974.0,99973.0,0.63714977]
[1734051848323,0.05,99974.0,99973.0,0.33762093]
[1734051848520,0.0895854,99980.0,99975.0,0.049999]
[1734051848521,0.13948148,99979.0,99975.0,0.049999]
[1734051848712,0.049998,99978.0,99977.0,0.29978622]